bitfinex/quotes_ETHUSD_20220123
["timestamp","ask_amount","ask_price","bid_price","bid_amount"]
[1642918548670,0.00170528,2472.1,2470.8,0.00568423]
[1642918549112,0.00170528,2472.1,2471.4,1.34788747]
[1642918549514,0.00170528,2472.1,2471.5,0.00170527]
[1642918549715,0.07989478,2472.1,2471.5,0.00170527]
[1642918549915,0.494,2472.0,2471.5,0.00170527]
[1642918550115,0.494,2472.0,2470.6,0.00682108]
[1642918550914,0.494,2472.0,2471.2,1.45006972]
[1642918551116,0.494,2472.0,2471.6,1.40753507]
[1642918551319,0.00170528,2472.1,2471.6,1.40753507]
[1642918551520,0.00170528,2472.1,2471.7,2.5796944]
[1642918551825,2.3402,2472.7,2471.8,0.00170528]
[1642918552015,5.8001895,2472.9,2471.8,0.00170528]
[1642918552216,0.00113684,2472.3,2471.9,0.01104239]
[1642918552419,0.00113684,2472.3,2471.9,1.41633264]
[1642918552664,0.00113684,2472.3,2471.9,1.40529025]
[1642918553066,0.00113684,2472.3,2472.0,2.5605004]
[1642918553266,0.00113684,2472.3,2472.2,3.2525]
[1642918553467,0.00113684,2472.3,2472.2,6.28438121]
[1642918553667,0.00113684,2472.3,2472.2,3.39069997]
[1642918553868,0.00113684,2472.3,2472.2,6.14169542]
[1642918554269,3.684e-05,2472.3,2472.2,6.15457911]
[1642918554477,0.0781895,2474.2,2472.3,3.0508]
[1642918554671,0.0781895,2474.2,2472.9,0.01601313]
[1642918554874,0.00738951,2473.6,2472.8,0.21543944]
[1642918555073,0.00738951,2473.6,2472.8,0.30761836]
[1642918555272,0.00682108,2473.5,2472.8,0.30761836]
[1642918555473,0.03501058,2474.4,2472.9,3.05]
[1642918555671,0.03501058,2474.4,2473.0,2.5621527]
[1642918555871,0.03501058,2474.4,2473.0,2.56499481]
[1642918555872,0.00454739,2474.3,2473.0,2.56499481]
[1642918556072,0.00454739,2474.3,2473.1,0.00227369]
[1642918556429,8.50442763,2474.8,2473.2,3.05]
[1642918556430,0.01245763,2474.8,2473.2,3.05]
[1642918556626,3.6193,2474.9,2473.2,3.05]
[1642918556627,3.6193,2474.9,2473.3,2.7646527]
[1642918556826,0.00284212,2474.7,2473.5,0.01260282]
[1642918557029,0.00284212,2474.7,2473.6,0.02343751]
[1642918557223,3.6193,2474.9,2473.7,3.05]
[1642918557224,3.57214212,2474.9,2473.7,3.05]
[1642918557424,3.57214212,2474.9,2474.1,1.37154895]
[1642918557627,1.20419458,2474.2,2474.1,1.37154895]
[1642918558025,0.00227369,2475.1,2474.1,1.37154895]
[1642918558226,0.00227369,2475.1,2474.2,2.5621527]
[1642918558426,0.00170527,2475.0,2474.2,2.56499482]
[1642918558624,0.00170527,2475.0,2474.2,0.00284212]
[1642918558827,0.00113684,2474.9,2474.3,0.0022737]
[1642918559024,0.43076061,2474.8,2474.1,0.00341055]
[1642918559224,0.43076061,2474.8,2474.1,2.56556325]
[1642918559425,0.43076061,2474.8,2474.2,0.2025]
[1642918559629,0.00511581,2475.6,2474.2,3.3714727]
[1642918559825,0.00511581,2475.6,2474.3,2.8644264]
[1642918560163,2.51671,2476.5,2474.5,0.00853928]
[1642918560164,0.00454738,2475.5,2474.5,0.00853928]
[1642918560363,0.00454738,2475.5,2474.7,0.01257211]
[1642918560667,7.896e-05,2475.4,2475.1,24.06]
[1642918560872,0.03501058,2477.4,2475.4,3.0873623]
[1642918561070,0.01246177,2477.5,2475.6,24.06]
[1642918561271,8.2521,2478.4,2475.9,0.01261958]
[1642918561272,8.24506851,2478.4,2475.9,0.01261958]
[1642918561466,8.24506851,2478.4,2476.0,0.6965]
[1642918561667,0.00341054,2477.4,2476.1,2.5621527]
[1642918561869,0.43076061,2477.2,2476.2,0.34069997]
[1642918562069,0.43076061,2477.2,2476.3,2.8621527]
[1642918562271,5.27e-06,2477.1,2476.5,0.01257318]
[1642918562468,5.27e-06,2477.1,2476.6,0.70196205]
[1642918562667,0.01209509,2478.9,2476.6,2.0339958]
[1642918562668,0.00966847,2478.8,2476.6,2.0339958]
[1642918562871,0.00966847,2478.8,2476.7,0.00226843]
[1642918563071,0.00910004,2478.7,2478.1,1.3573903]
[1642918563468,1.02300831,2479.6,2478.1,1.3573903]
[1642918563469,0.00853162,2478.6,2478.2,0.2025]
[1642918563918,6.32e-05,2478.5,2478.3,0.494]
[1642918564119,6.32e-05,2478.5,2478.4,3.2525]
[1642918564320,6.32e-05,2478.5,2478.4,3.76769879]
[1642918564618,6.32e-05,2478.5,2478.4,5.06769879]
[1642918565019,0.01286412,2480.5,2478.4,7.62985149]
[1642918565220,0.01286412,2480.5,2478.6,0.04652678]
[1642918565420,0.00230004,2480.4,2479.0,0.01257294]
[1642918565618,0.00230004,2480.4,2479.1,0.6965]
[1642918565820,1.08588007,2481.4,2479.4,3.05]
[1642918566019,1.08588007,2481.4,2479.2,2.5621527]
[1642918566020,0.04602105,2481.3,2479.7,0.01259525]
[1642918566223,0.00454739,2481.1,2479.7,0.01259525]
[1642918566419,0.00454739,2481.1,2479.8,0.00284212]
[1642918566622,0.00397896,2481.0,2480.6,1.5]
[1642918566919,3.05341054,2480.9,2479.8,0.00284212]
[1642918567117,1.27784834,2480.8,2479.8,0.00284212]
[1642918567318,0.08969393,2480.8,2479.7,1.38429922]
[1642918567526,0.00227369,2480.7,2479.8,0.2025]
[1642918567761,0.00227369,2480.7,2479.8,0.00284212]
[1642918567762,0.0891255,2480.7,2479.8,0.00284212]
[1642918567962,0.00170527,2480.6,2479.9,0.00227369]
[1642918568162,0.08855708,2480.6,2479.7,0.00341054]
[1642918568365,0.00113685,2480.5,2479.7,0.00341054]
[1642918568565,0.00113685,2480.5,2479.1,0.00682108]
[1642918568566,0.00936923,2480.4,2479.1,0.00682108]
[1642918568762,0.9597,2480.3,2478.7,0.00909478]
[1642918568965,4.01337335,2480.2,2478.4,0.01080005]
[1642918569168,2.01988,2480.0,2478.4,0.01080005]
[1642918569569,0.08685181,2479.9,2478.5,0.6965]
[1642918569767,0.00113685,2480.5,2478.7,0.01232308]
[1642918570173,0.00113685,2480.5,2478.8,0.00852635]
[1642918570371,1.26116091,2480.2,2478.9,1.17549955]
[1642918570570,0.00113685,2480.5,2479.0,2.56433648]
[1642918570870,0.00113685,2480.5,2479.3,0.01285381]
[1642918571069,0.00113685,2480.5,2479.4,0.6965]
[1642918571270,0.00113685,2480.5,2479.5,2.56433648]
[1642918571520,0.00113685,2480.5,2479.6,1.69665646]
[1642918571723,0.00113685,2480.5,2479.8,0.01221513]
[1642918571916,0.00113685,2480.5,2480.0,1.34357059]
[1642918572117,0.00113685,2480.5,2480.1,3.83831447]
[1642918572319,0.00113685,2480.5,2480.1,3.83945132]
[1642918572518,0.00113685,2480.5,2480.2,1.47447081]
[1642918572519,3.685e-05,2480.5,2480.2,1.47447081]
[1642918572725,3.685e-05,2480.5,2480.4,3.26491728]
[1642918572919,3.685e-05,2480.5,2480.4,4.35811728]
[1642918573119,0.01285243,2482.8,2480.5,3.05]
[1642918573321,5.9412,2483.3,2480.6,2.94722511]
[1642918573624,1.99795792,2483.3,2481.2,0.04350023]
[1642918573825,1.99795792,2483.3,2482.4,1.21974934]
[1642918574027,0.00738951,2483.2,2482.4,1.21974934]
[1642918574221,0.00738951,2483.2,2482.3,0.2025]
[1642918574422,0.00682109,2483.1,2482.3,0.2025]
[1642918574622,0.06641829,2483.0,2482.2,2.56433648]
[1642918574822,0.07267095,2483.0,2482.1,0.34069997]
[1642918575026,0.07267095,2483.0,2482.1,0.13819997]
[1642918575027,0.00568424,2482.9,2482.1,0.13819997]
[1642918575461,0.00511582,2482.8,2482.1,0.13819997]
[1642918575863,0.00454739,2482.7,2482.1,0.13819997]
[1642918576068,4.739e-05,2482.7,2482.2,0.494]
[1642918576269,7.897e-05,2482.6,2482.3,2.76683648]
[1642918576466,7.897e-05,2482.6,2482.5,3.2525]
[1642918576666,7.897e-05,2482.6,2482.5,3.7465]
[1642918576866,7.897e-05,2482.6,2482.5,3.75148945]
[1642918577068,7.897e-05,2482.6,2482.5,0.00498945]
[1642918577368,0.06649726,2482.6,2482.2,0.00669473]
[1642918577778,0.06649726,2482.6,2481.2,0.50078907]
[1642918577779,2.35,2482.4,2481.2,0.50078907]
[1642918577971,2.35,2482.4,2480.8,1.62584282]
[1642918578170,4.383,2482.4,2480.8,1.42334282]
[1642918578370,4.383,2482.4,2480.9,0.00625266]
[1642918578371,0.01205306,2482.0,2480.9,0.00625266]
[1642918578573,1.1820361,2481.3,2480.9,0.00625266]
[1642918578772,1.1820361,2481.3,2480.4,1.42334282]
[1642918578773,0.0264369,2481.2,2480.5,0.00852635]
[1642918579024,0.494,2481.1,2479.1,0.2025]
[1642918579223,1.00961,2480.6,2478.9,0.2025]
[1642918579419,0.00488075,2480.5,2478.9,0.2025]
[1642918579621,0.00488075,2480.5,2479.2,1.27106955]
[1642918579922,0.00284211,2481.0,2479.7,0.01213909]
[1642918580123,0.00284211,2481.0,2479.8,0.2025]
[1642918580427,11.68307,2482.1,2480.3,0.01288048]
[1642918580428,0.00227369,2480.9,2480.3,0.01288048]
[1642918580720,0.00170527,2480.8,2480.3,0.01288048]
[1642918580919,0.00170527,2480.8,2479.9,0.00341054]
[1642918581123,0.00113684,2480.7,2479.9,0.00341054]
[1642918581322,0.00113684,2480.7,2479.8,0.00397897]
[1642918581523,4.02412438,2480.7,2479.7,0.00454739]
[1642918581723,4.91062438,2480.7,2479.2,0.00738951]
[1642918581922,1.48813766,2479.7,2479.2,0.00738951]
[1642918582126,2.033,2479.6,2479.2,0.00738951]
[1642918582324,2.033,2479.6,2477.9,0.01201218]
[1642918582325,3.05,2479.5,2477.9,0.01201218]
[1642918582522,0.02842472,2479.3,2477.9,0.01201218]
[1642918582766,0.02842472,2479.3,2477.4,0.01023162]
[1642918583267,1.48813766,2479.7,2476.4,0.6553]
[1642918583268,36.93579016,2484.4,2478.9,3.05]
[1642918583468,1.942618,2480.3,2479.6,3.6609026]
[1642918583669,10.9142,2480.2,2480.1,0.0126378]
[1642918583872,10.9142,2480.2,2479.8,0.04619609]
[1642918584072,10.9142,2480.2,2479.6,3.6609026]
[1642918584073,10.9142,2480.2,2479.7,2.56433648]
[1642918584274,10.9142,2480.2,2480.0,1.47302474]
[1642918584473,10.9142,2480.2,2480.1,0.01243112]
[1642918584674,10.9142,2480.2,2479.6,0.78918532]
[1642918584873,3.05,2480.1,2478.2,0.01240809]
[1642918585072,0.494,2480.0,2478.2,0.01240809]
[1642918585273,0.494,2480.0,2478.3,0.00682108]
[1642918585274,0.49684212,2480.0,2478.3,0.00682108]
[1642918585479,1.12230401,2479.5,2478.3,0.00682108]
[1642918586075,0.494,2479.4,2478.3,0.00682108]
[1642918586512,0.494,2479.4,2478.0,0.00852635]
[1642918586713,0.01321036,2479.3,2478.0,0.00852635]
[1642918586914,0.0022737,2479.9,2477.5,0.01136847]
[1642918586915,0.494,2479.2,2477.5,0.01136847]
[1642918587113,0.494,2479.1,2477.5,0.01136847]
[1642918587514,0.494,2479.1,2477.3,1.33022281]
[1642918587515,1.5042,2479.1,2477.3,1.33022281]
[1642918587816,1.5042,2479.1,2477.4,2.74015959]
[1642918588212,1.5042,2479.1,2477.5,0.01136847]
[1642918588413,1.0105419,2478.9,2477.5,0.01136847]
[1642918588618,1.01053,2478.5,2477.5,0.01136847]
[1642918588815,22.58465117,2478.4,2477.5,0.01136847]
[1642918589019,22.58465117,2478.4,2477.3,0.01250531]
[1642918589020,0.05,2477.9,2477.3,0.01250531]
[1642918589221,0.05,2477.9,2476.2,0.01236293]
[1642918589222,3.05,2477.7,2476.2,0.01236293]
[1642918589621,3.05,2477.7,2476.3,0.00568424]
[1642918589622,1.02090038,2477.6,2476.3,0.00568424]
[1642918589819,0.02871792,2477.4,2476.3,0.00568424]
[1642918590021,0.02871792,2477.4,2475.6,0.21510373]
[1642918590263,0.00882016,2477.2,2475.8,1.24634339]
[1642918590468,0.494,2477.3,2476.3,0.01221546]
[1642918590469,0.00909478,2477.3,2476.3,0.01221546]
[1642918590671,0.00795793,2477.1,2476.3,0.01263986]
[1642918590868,0.00852635,2477.2,2476.3,0.01263986]
[1642918591072,0.494,2477.6,2476.3,0.01263986]
[1642918591073,0.0073895,2477.0,2476.3,0.01263986]
[1642918591268,0.00795793,2477.1,2476.2,0.16445986]
[1642918591468,0.494,2477.6,2476.2,0.16445986]
[1642918591469,0.00682108,2476.9,2476.2,0.16445986]
[1642918591668,0.0073895,2477.0,2476.4,1.48667014]
[1642918591870,0.00625266,2476.8,2476.2,0.16445986]
[1642918592169,0.00568423,2476.7,2476.2,0.16445986]
[1642918592575,0.494,2478.3,2476.7,0.01193688]
[1642918592773,23.0838,2478.4,2476.7,0.01193688]
[1642918592774,22.0733,2478.4,2476.7,0.01193688]
[1642918592971,0.00511581,2477.5,2476.8,0.22723332]
[1642918593369,0.00454739,2477.4,2476.8,0.22723332]
[1642918593569,0.00454739,2477.4,2477.0,1.44864641]
[1642918593770,0.00397897,2477.3,2477.1,2.7950783]
[1642918594023,0.00397897,2477.3,2477.1,0.16445986]
[1642918594225,22.0733,2478.4,2476.7,0.01193688]
[1642918594226,0.00341054,2477.2,2476.7,0.01193688]
[1642918594621,0.494,2477.5,2476.7,0.01193688]
[1642918594622,0.00284212,2477.1,2476.7,0.01193688]
[1642918595122,0.69583,2477.5,2476.7,0.01193688]
[1642918595123,0.50890793,2477.0,2476.7,0.01193688]
[1642918595327,2.0,2476.7,2476.3,0.00170527]
[1642918595727,2.0,2476.7,2476.0,0.00341054]
[1642918596127,2.0,2476.7,2474.9,0.01288185]
[1642918596128,0.69583,2476.6,2475.8,0.00454739]
[1642918596329,0.69583,2476.6,2474.8,2.71663558]
[1642918596330,0.01240467,2476.3,2474.8,2.71663558]
[1642918596525,0.01240467,2476.3,2475.0,0.00454738]
[1642918596526,1.01158,2476.0,2475.0,0.00454738]
[1642918596724,2.24504411,2475.9,2475.0,0.00454738]
[1642918596923,2.24504411,2475.9,2474.2,0.00909477]
[1642918597124,7.22339291,2475.9,2474.2,0.00909477]
[1642918597326,0.01229069,2475.7,2474.2,0.00909477]
[1642918597524,1.01174,2475.4,2474.2,0.00909477]
[1642918597777,12.4359,2475.3,2474.3,1.45799273]
[1642918597977,12.4359,2475.3,2474.2,0.00909477]
[1642918598176,12.4359,2475.3,2474.4,0.00795793]
[1642918598382,12.4359,2475.3,2474.4,0.16445986]
[1642918598578,12.4359,2475.3,2474.2,0.00909477]
[1642918598780,1.4770922,2475.2,2474.5,0.0073895]
[1642918599079,1.4770922,2475.2,2473.7,1.1200766]
[1642918599080,0.494,2475.1,2474.2,0.00909477]
[1642918599479,0.21104928,2475.0,2473.4,0.01364216]
[1642918599679,1.01199,2474.7,2473.4,0.01364216]
[1642918599881,1.50599,2474.7,2473.4,0.01364216]
[1642918600282,11.64709,2474.7,2473.4,0.01364216]
[1642918600481,0.01051094,2474.6,2473.4,0.01364216]
[1642918600682,11.64709,2474.7,2473.4,0.01364216]
[1642918600990,11.64709,2474.7,2473.5,0.16445986]
[1642918601181,10.6351,2474.7,2473.5,0.16445986]
[1642918601419,10.1411,2474.7,2473.8,1.12117992]
[1642918601818,10.1411,2474.7,2473.9,0.01080004]
[1642918602019,10.1411,2474.7,2474.0,1.18743504]
[1642918602423,10.1411,2474.7,2474.1,0.0096632]
[1642918603022,11.84892,2474.7,2474.1,0.0096632]
[1642918603221,11.84892,2474.7,2472.8,0.01240024]
[1642918603222,3.05,2474.6,2472.8,0.01240024]
[1642918603420,3.05,2474.6,2472.6,0.16445986]
[1642918603421,0.01203285,2474.2,2473.2,0.00511581]
[1642918603626,6.13226003,2474.5,2473.2,0.00511581]
[1642918603627,0.494,2474.1,2473.2,0.00511581]
[1642918603924,0.494,2474.0,2473.0,0.00625265]
[1642918604121,10.9714,2473.9,2473.0,1.30116744]
[1642918604322,10.9714,2473.9,2473.0,0.17071251]
[1642918604524,10.9714,2473.9,2473.1,0.00568423]
[1642918604923,10.9714,2473.9,2473.0,0.00625265]
[1642918605363,10.9714,2473.9,2473.2,1.18170331]
[1642918605562,10.9714,2473.9,2473.0,0.00625265]
[1642918605768,10.9714,2473.9,2473.3,0.00454738]
[1642918605968,10.9714,2473.9,2473.0,0.00625265]
[1642918607071,1.01235,2473.8,2473.0,0.00625265]
[1642918607271,0.03771,2473.7,2473.0,0.00625265]
[1642918607470,0.494,2473.6,2472.6,0.00852635]
[1642918607669,0.494,2473.6,2472.4,0.00966319]
[1642918608272,0.494,2473.6,2472.5,1.11939988]
[1642918608473,0.494,2473.6,2472.6,2.73754192]
[1642918608675,0.494,2473.6,2472.6,2.74606827]
[1642918608921,0.494,2473.6,2472.7,0.00795792]
[1642918609626,1.01252,2473.4,2472.4,0.00966319]
[1642918609828,24.554,2473.3,2472.4,0.00966319]
[1642918610028,10.386,2473.2,2472.4,0.00966319]
[1642918610228,10.88,2473.2,2472.4,0.00966319]
[1642918610427,0.03771,2473.1,2472.4,0.00966319]
[1642918610634,0.494,2473.0,2472.4,0.00966319]
[1642918610828,1.05044,2472.9,2472.4,0.00966319]
[1642918611128,1.54444,2472.9,2472.4,0.00966319]
[1642918613574,0.494,2472.9,2472.4,0.00966319]
[1642918613775,0.828,2473.0,2472.4,1.26789149]
[1642918613981,0.828,2473.0,2472.5,2.73754192]
[1642918614174,0.828,2473.0,2472.3,0.00046319]
[1642918614175,0.06148532,2473.0,2472.3,0.00046319]
[1642918614377,0.00284211,2472.9,2472.3,0.00046319]
[1642918614575,0.00284211,2472.9,2472.5,1.25668104]
[1642918614775,0.00227369,2472.8,2472.5,1.25668104]
[1642918614976,0.0006427,2472.8,2472.3,0.00046319]
[1642918615174,0.00170527,2472.7,2472.3,0.00046319]
[1642918615375,0.00170527,2472.7,2472.4,0.00163099]
[1642918615574,0.00121112,2472.9,2472.4,0.00163099]
[1642918616176,0.00121112,2472.9,2472.4,1.25724986]
[1642918616421,0.00121112,2472.9,2472.5,2.33884405]
[1642918616624,1.112e-05,2472.9,2472.6,0.01202426]
[1642918616823,0.06148532,2473.0,2472.9,2.60078888]
[1642918617222,0.06148532,2473.0,2472.9,0.00078888]
[1642918617622,0.06148532,2473.0,2472.9,1.13241605]
[1642918617926,0.06148532,2473.0,2472.9,0.00078888]
[1642918618725,0.06148532,2473.0,2472.9,1.51520706]
[1642918619128,0.06148532,2473.0,2472.9,4.02623552]
[1642918619326,0.06148532,2473.0,2472.9,1.51520706]
[1642918619528,0.06148532,2473.0,2472.9,0.00078888]
[1642918620571,0.06148532,2473.0,2472.9,1.36708736]
[1642918620870,0.06148532,2473.0,2472.9,0.00078888]
[1642918621081,0.02916303,2473.0,2472.9,0.00078888]
[1642918622275,10.386,2473.2,2472.9,0.00078888]
[1642918622677,0.00113685,2473.1,2472.9,0.00078888]
[1642918623175,0.01347404,2473.1,2472.9,0.00078888]
[1642918623377,2.78771,2473.0,2472.9,0.00078888]
[1642918623578,1.85,2472.9,2472.7,0.00113684]
[1642918623780,2.78771,2473.0,2472.7,0.00113684]
[1642918623781,0.494,2473.0,2472.7,0.00113684]
[1642918624018,0.494,2473.0,2472.4,0.00284211]
[1642918624418,1.0128,2472.8,2472.4,0.00284211]
[1642918624618,1.5068,2472.8,2472.4,0.00284211]
[1642918626322,0.00113685,2473.1,2472.4,0.00284211]
[1642918626731,0.00113685,2473.1,2472.5,1.30504638]
[1642918626934,0.00113685,2473.1,2472.4,0.00284211]
[1642918627122,0.00113685,2473.1,2472.6,0.00170527]
[1642918627326,0.00113685,2473.1,2472.4,0.00284211]
[1642918628375,0.00113685,2473.1,2472.4,1.09768786]
[1642918628571,24.06,2472.8,2471.3,0.20232]
[1642918628775,24.06,2472.8,2470.8,0.20232]
[1642918628776,0.01277952,2472.5,2470.8,0.20232]
[1642918628974,0.494,2472.4,2471.7,0.00397897]
[1642918629478,0.494,2472.4,2471.3,0.00625266]
[1642918629670,0.494,2472.4,2471.7,1.10437232]
[1642918629872,0.00113684,2472.6,2472.0,1.50521374]
[1642918630072,0.00113684,2472.6,2472.1,2.7404952]
[1642918630274,0.00113684,2472.6,2472.1,0.00170527]
[1642918630476,0.00113684,2472.6,2472.2,0.00113685]
[1642918630674,0.00113684,2472.6,2472.1,0.20402527]
[1642918630877,0.00113684,2472.6,2472.2,1.41581879]
[1642918631079,1.01239,2473.8,2472.2,1.41581879]
[1642918631080,1.1614,2474.1,2472.9,1.47938613]
[1642918631276,1.1614,2474.1,2473.4,1.18781638]
[1642918631520,1.1614,2474.1,2473.4,0.01204778]
[1642918632124,1.1614,2474.1,2473.5,1.44192154]
[1642918632321,1.1614,2474.1,2473.5,2.74750898]
[1642918632625,1.1614,2474.1,2473.6,3.2428152]
[1642918632820,1.1614,2474.1,2473.6,4.5428152]
[1642918633021,1.1614,2474.1,2473.9,1.39274893]
[1642918633222,9.9123,2474.6,2474.2,1.53149713]
[1642918633420,9.9123,2474.6,2474.3,2.78912434]
[1642918633621,9.9123,2474.6,2474.3,2.99144434]
[1642918634725,9.9123,2474.6,2474.1,2.32279999]
[1642918635174,0.0096632,2474.3,2474.1,2.32279999]
[1642918635575,0.00909478,2474.2,2474.1,2.32279999]
[1642918635979,9.9123,2474.6,2474.1,2.32279999]
[1642918635980,0.22679478,2474.4,2474.1,2.32279999]
[1642918636178,0.22679478,2474.4,2473.1,2.75423332]
[1642918636179,3.05,2474.3,2473.1,2.75423332]
[1642918636376,3.05,2474.3,2472.6,2.76709469]
[1642918636377,0.65856,2474.2,2472.6,2.76709469]
[1642918636578,0.65856,2474.2,2473.2,0.00568424]
[1642918636776,0.65856,2474.2,2472.7,0.00852635]
[1642918636980,0.65856,2474.2,2473.3,1.16453678]
[1642918637177,6.8241,2474.3,2473.4,2.75423332]
[1642918637386,6.8241,2474.3,2473.7,1.56366246]
[1642918637579,6.8241,2474.3,2473.8,0.21512197]
[1642918637777,6.8241,2474.3,2473.8,0.51739567]
[1642918637977,6.8241,2474.3,2473.9,0.00170527]
[1642918638177,6.8241,2474.3,2474.0,1.49983184]
[1642918638378,7.48,2475.6,2474.2,0.2447582]
[1642918638582,7.3203,2475.5,2474.5,1.19934461]
[1642918638920,7.3203,2475.5,2474.5,0.01238774]
[1642918639119,7.3203,2475.5,2474.5,1.631425]
[1642918639319,7.3203,2475.5,2474.5,1.61903726]
[1642918639521,7.3203,2475.5,2474.4,1.20494606]
[1642918639522,8.70373459,2475.5,2474.4,1.20494606]
[1642918639924,7.3203,2475.5,2474.4,1.20494606]
[1642918640322,7.3203,2475.5,2475.0,1.10572549]
[1642918640523,7.3203,2475.5,2475.1,2.71346935]
[1642918640721,7.3203,2475.5,2475.4,3.99337951]
[1642918641024,10.4239,2476.1,2476.0,1.53924613]
[1642918641621,10.4239,2476.1,2475.3,2.76366656]
[1642918641821,10.4239,2476.1,2474.8,0.20232]
[1642918641822,7.4609,2476.0,2474.8,0.20232]
[1642918642023,7.47113162,2476.0,2474.8,0.20232]
[1642918642226,0.16456,2475.9,2474.4,0.00087747]
[1642918642428,0.494,2475.8,2474.4,0.00087747]
[1642918642674,1.32095728,2475.3,2474.4,0.00087747]
[1642918643074,0.00568423,2475.2,2474.4,0.00087747]
[1642918643480,0.00511581,2475.1,2474.4,0.00087747]
[1642918643877,0.00454739,2475.0,2474.4,0.00087747]
[1642918644280,0.00397896,2474.9,2474.4,0.00087747]
[1642918644483,5.9115,2475.9,2475.0,0.00966321]
[1642918644688,7.4609,2476.0,2475.0,0.04232069]
[1642918644885,7.4609,2476.0,2475.1,1.69207205]
[1642918644886,0.00341054,2475.5,2475.1,1.69207205]
[1642918645085,0.00341054,2475.5,2475.2,0.04516969]
[1642918645282,0.00284212,2475.4,2475.1,0.21482579]
[1642918645681,0.0022737,2475.3,2475.0,0.00966321]
[1642918646081,0.00170527,2475.2,2475.0,0.00966321]
[1642918646525,0.00113685,2475.1,2475.0,0.00966321]
[1642918646726,0.00113685,2475.1,2475.0,0.21168321]
[1642918646925,0.00568424,2475.1,2475.0,3.26168321]
[1642918647126,0.00568424,2475.1,2475.0,5.825273]
[1642918647526,0.00568424,2475.1,2475.0,3.26168321]
[1642918647731,0.00568424,2475.1,2475.0,0.00966321]
[1642918649828,0.17024424,2475.1,2475.0,0.00966321]
[1642918650029,1.90568424,2475.1,2475.0,0.00966321]
[1642918650268,0.00568424,2475.1,2475.0,0.00966321]
[1642918650468,0.00568424,2475.1,2475.0,0.01055289]
[1642918651769,0.17024424,2475.1,2475.0,5.289e-05]
[1642918652071,3.80109605,2475.1,2475.0,5.289e-05]
[1642918652267,3.80109605,2475.1,2474.5,0.00227369]
[1642918652268,3.05,2475.0,2474.5,0.00227369]
[1642918652474,1.30440489,2474.8,2474.5,0.00227369]
[1642918652670,1.30440489,2474.8,2473.7,0.00682108]
[1642918652671,10.0557,2474.7,2473.7,0.00682108]
[1642918652876,17.1224,2474.7,2473.7,0.00682108]
[1642918653074,17.28696,2474.7,2473.7,0.00682108]
[1642918653273,18.13434,2474.7,2473.7,0.00682108]
[1642918653474,17.1224,2474.7,2473.7,0.00682108]
[1642918653675,16.6284,2474.7,2473.8,1.60951973]
[1642918653922,16.6284,2474.7,2473.9,2.76366656]
[1642918654118,16.6284,2474.7,2474.0,0.20202]
[1642918654319,16.6284,2474.7,2474.2,1.29570761]
[1642918654720,16.6284,2474.7,2474.3,0.00341054]
[1642918655623,0.01306923,2474.6,2474.3,0.00341054]
[1642918656428,0.01306923,2474.6,2474.0,0.00511581]
[1642918656628,0.494,2474.5,2474.0,0.00511581]
[1642918656829,0.16456,2474.4,2474.0,0.00511581]
[1642918657030,1.27708418,2474.2,2473.4,0.00852635]
[1642918657329,1.27708418,2474.2,2473.2,0.0096632]
[1642918657330,0.49930873,2474.1,2473.2,0.0096632]
[1642918657528,0.16456,2474.0,2473.2,0.0096632]
[1642918657775,0.02035117,2473.8,2472.9,0.01136847]
[1642918657978,0.494,2473.7,2472.9,0.01136847]
[1642918658174,0.11456,2474.0,2472.5,1.51955284]
[1642918658175,10.98546739,2473.6,2472.5,1.51955284]
[1642918658372,2.033,2473.4,2472.4,0.01421058]
[1642918659278,2.033,2473.4,2472.5,0.20202]
[1642918659578,2.033,2473.4,2472.6,0.01307374]
[1642918659979,2.033,2473.4,2472.4,1.41069437]
[1642918660180,2.033,2473.4,2472.4,0.01421058]
[1642918660379,11.63584714,2473.5,2472.5,0.01364216]
[1642918660380,2.033,2473.2,2472.5,0.01364216]
[1642918660585,2.033,2473.2,2472.4,0.01421058]
[1642918660586,2.527,2473.2,2472.4,0.01421058]
[1642918660779,2.527,2473.2,2472.1,0.01591585]
[1642918660780,2.64156,2473.2,2472.1,0.01591585]
[1642918660979,0.00789075,2473.1,2472.1,0.01591585]
[1642918661178,1.15758108,2472.7,2471.7,0.01818955]
[1642918661435,0.494,2472.6,2471.7,2.76366656]
[1642918661624,0.494,2472.6,2471.7,2.78185611]
[1642918661822,0.494,2472.6,2471.7,4.03279554]
[1642918662024,2.033,2473.0,2472.1,1.52968334]
[1642918662226,2.033,2473.0,2472.2,2.76366656]
[1642918662425,0.494,2473.2,2472.3,0.20202]
[1642918662625,0.494,2473.2,2472.3,0.01477901]
[1642918662828,0.494,2473.2,2472.7,1.13580336]
[1642918663231,0.494,2473.2,2472.8,0.01193689]
[1642918663626,0.494,2473.2,2472.1,0.01591585]
[1642918664232,0.494,2473.2,2472.3,1.38062527]
[1642918664629,0.494,2473.2,2472.4,0.01421058]
[1642918665671,0.494,2473.2,2472.5,1.23226129]
[1642918665876,2.033,2473.4,2472.6,2.76091948]
[1642918666076,2.033,2473.4,2472.9,1.43456029]
[1642918666372,9.7433,2473.5,2473.0,0.01080004]
[1642918666572,9.7433,2473.5,2473.1,0.03763712]
[1642918666772,9.7433,2473.5,2473.1,1.50750473]
[1642918666976,9.7433,2473.5,2473.2,0.0096632]
[1642918667574,9.7433,2473.5,2473.0,0.01080004]
[1642918668379,9.7433,2473.5,2472.8,0.01193689]
[1642918668576,9.7433,2473.5,2472.7,0.01250531]
[1642918668577,1.32903862,2473.3,2472.7,0.01250531]
[1642918668777,0.494,2473.2,2472.4,0.01421058]
[1642918669026,0.494,2473.2,2472.0,0.01648428]
[1642918669228,0.0040071,2473.0,2472.0,0.01648428]
[1642918669426,0.494,2472.9,2471.8,0.01762113]
[1642918669630,1.34790155,2472.1,2471.8,0.01762113]
[1642918669931,1.34790155,2472.1,2471.3,0.02046324]
[1642918669932,0.494,2472.0,2471.3,0.02046324]
[1642918670127,9.8926,2471.9,2471.3,0.02046324]
[1642918670327,10.3866,2471.9,2470.8,0.02330536]
[1642918670828,10.3866,2471.9,2470.7,1.42132807]
[1642918671032,10.3366,2471.9,2470.8,2.71057057]
[1642918671230,9.8426,2471.9,2471.2,0.01205408]
[1642918671429,9.8426,2471.9,2471.3,0.01286316]
[1642918671628,9.8426,2471.9,2471.4,0.15202]
[1642918671835,7.4197,2472.1,2471.5,0.2023]
[1642918672029,2.3728,2473.4,2471.6,0.10781647]
[1642918672030,2.8668,2473.4,2471.6,0.10781647]
[1642918672230,7.3426,2473.3,2471.7,0.2023]